bitfinex/quotes_SOLUSD_20240909
["timestamp","ask_amount","ask_price","bid_price","bid_amount"]
[1725854834288,26.08978761,129.07,129.01,9.71828848]
[1725854835308,26.08978761,129.07,129.03,9.71828848]
[1725854836523,26.08978761,129.07,129.05,9.71828848]
[1725854836813,26.08978761,129.07,129.03,9.71828848]
[1725854838007,45.0,129.06,129.03,9.71828848]
[1725854840915,26.08978761,129.07,129.05,9.71828848]
[1725854841117,21.2935,129.12,129.05,9.71828848]
[1725854841498,47.58228451,129.12,129.05,9.71828848]
[1725854841903,26.23282056,129.11,129.05,9.71828848]
[1725854842523,45.0,129.1,129.05,9.71828848]
[1725854844816,45.0,129.1,129.03,9.71828848]
[1725854852026,45.0,129.1,129.02,6.1439]
[1725854852227,6.1977,129.08,129.01,15.6423]
[1725854852433,65.0,129.07,129.0,9.71828848]
[1725854853508,65.0,129.07,128.95,12.11114981]
[1725854853509,6.1991,129.05,128.97,9.71828848]
[1725854853722,45.0,129.04,128.97,9.71828848]
[1725854854609,20.0,129.03,128.97,9.71828848]
[1725854854932,45.0,129.02,128.97,9.71828848]
[1725854856035,60.741,129.02,128.95,9.71828848]
[1725854858434,15.741,129.02,128.97,9.71828848]
[1725854859015,15.741,129.02,128.92,32.24290219]
[1725854859229,15.741,129.02,128.93,20.0]
[1725854859438,21.9417,129.02,128.95,9.71828848]
[1725854859612,28.287,129.02,128.95,9.71828848]
[1725854859929,45.0,129.01,128.95,9.71828848]
[1725854879755,22.0863,129.02,128.97,9.71828848]
[1725854880130,22.0863,129.02,128.94,9.71828848]
[1725854880333,6.2011,129.01,128.92,9.71828848]
[1725854880638,26.202,129.0,128.92,9.71828848]
[1725854880945,45.0,128.99,128.92,9.71828848]
[1725854881152,20.0,128.98,128.92,9.71828848]
[1725854881352,51.0198,128.97,128.89,10.55760219]
[1725854881569,16.5672,128.96,128.9,9.71828848]
[1725854881735,45.0,128.95,128.9,9.71828848]
[1725854883256,45.0,128.95,128.92,9.71828848]
[1725854887265,16.5672,128.96,128.92,9.71828848]
[1725854887562,39.92419334,128.99,128.94,9.71828848]
[1725854887767,45.0,128.98,128.94,9.71828848]
[1725854887961,39.92419334,128.99,128.94,9.71828848]
[1725854892976,24.72549334,128.99,128.94,25.93128848]
[1725854893267,24.72549334,128.99,128.96,9.71828848]
[1725854893473,6.2001,129.03,128.96,9.71828848]
[1725854893644,65.0,129.02,128.96,9.71828848]
[1725854894869,6.2011,129.01,128.9,22.8121]
[1725854895066,65.0,129.0,128.93,9.71828848]
[1725854895371,65.0,129.0,128.91,20.0]
[1725854895557,45.0,129.0,128.95,9.71828848]
[1725854895762,24.93601848,129.03,128.97,9.71828848]
[1725854895944,20.0,129.02,128.97,9.71828848]
[1725854896667,20.0,129.02,128.95,9.71828848]
[1725854897160,6.2012,129.01,128.91,21.55470222]
[1725854897360,6.2012,129.01,128.94,9.71828848]
[1725854897563,20.0,129.0,128.94,9.71828848]
[1725854897863,45.0,128.99,128.94,9.71828848]
[1725854899169,60.8172,128.99,128.91,1.55470222]
[1725854899353,60.8172,128.99,128.92,9.71828848]
[1725854900852,60.8172,128.99,128.9,22.8121]
[1725854901157,6.087,128.94,128.91,1.55481304]
[1725854901347,45.0,128.93,128.91,3.10963393]
[1725854902165,45.0,128.93,128.89,9.71828848]
[1725854904773,45.0,128.93,128.87,9.71828848]
[1725854905869,45.0,128.93,128.85,9.71828848]
[1725854906451,45.0,128.93,128.86,20.0]
[1725854907884,45.0,128.93,128.85,9.71828848]
[1725854908469,16.2092,128.92,128.84,9.71828848]
[1725854908667,45.0,128.91,128.84,9.71828848]
[1725854909660,6.5422,128.89,128.83,0.8466767]
[1725854909858,45.0,128.88,128.83,0.8466767]
[1725854910153,45.0,128.88,128.84,9.71828848]
[1725854912779,45.0,128.88,128.83,0.8466767]
[1725854912973,45.0,128.88,128.83,10.56496518]
[1725854915460,45.0,128.88,128.85,9.71828848]
[1725854917174,45.18458987,128.92,128.87,9.71828848]
[1725854917357,20.0,128.91,128.87,9.71828848]
[1725854918488,45.0,128.9,128.87,9.71828848]
[1725854918666,45.0,128.9,128.83,0.8466767]
[1725854918867,45.0,128.9,128.85,9.71828848]
[1725854919688,45.0,128.9,128.84,9.71828848]
[1725854920597,20.0,128.89,128.83,0.8466767]
[1725854920901,45.0,128.88,128.84,9.71828848]
[1725854923590,45.0,128.88,128.83,0.8466767]
[1725854923779,45.0,128.88,128.84,9.71828848]
[1725854928296,16.2295,128.87,128.83,0.8466767]
[1725854928503,45.0,128.86,128.83,0.8466767]
[1725854929791,45.0,128.86,128.83,10.56496518]
[1725854931472,16.2295,128.87,128.83,10.56496518]
[1725854931998,16.2295,128.87,128.83,0.8466767]
[1725854932298,26.2432,128.86,128.83,0.8466767]
[1725854932879,45.0,128.85,128.83,0.8466767]
[1725854937605,45.0,128.85,128.84,9.71828848]
[1725854939604,16.2295,128.87,128.84,9.71828848]
[1725854940483,6.1297,128.89,128.84,9.71828848]
[1725854940692,45.0,128.88,128.84,9.71828848]
[1725854942806,45.0,128.89,128.84,9.71828848]
[1725854945089,45.0,128.9,128.84,9.71828848]
[1725854945296,20.0,128.89,128.84,9.71828848]
[1725854945497,45.0,128.88,128.84,9.71828848]
[1725854946209,45.0,128.88,128.83,0.8466767]
[1725854946501,45.0,128.88,128.83,10.56496518]
[1725854947188,20.0,128.89,128.85,9.71828848]
[1725854947592,20.0,128.9,128.85,9.71828848]
[1725854948404,45.0,128.89,128.85,9.71828848]
[1725854952296,45.0,128.89,128.87,9.71828848]
[1725854952501,45.0,128.9,128.87,9.71828848]
[1725854952711,18.18603256,128.91,128.89,9.71828848]
[1725854952923,16.5308,128.98,128.89,9.71828848]
[1725854953212,18.24400467,129.0,128.93,9.71828848]
[1725854953423,18.24400467,129.0,128.95,9.71828848]
[1725854955324,45.0,128.99,128.93,9.71828848]
[1725854956206,45.0,128.99,128.92,40.59921588]
[1725854959811,45.0,128.99,128.92,24.30351588]
[1725854960613,20.0,128.98,128.9,24.30351588]
[1725854960920,45.0,128.97,128.9,24.30351588]
[1725854971225,16.6278,128.96,128.9,24.30351588]
[1725854971410,45.0,128.95,128.88,24.30351588]
[1725854972630,45.0,128.95,128.9,24.30351588]
[1725854975216,45.0,128.95,128.88,24.30351588]
[1725854976123,45.0,128.95,128.89,9.72823664]
[1725854976950,45.0,128.95,128.86,16.056]
[1725854977112,45.0,128.95,128.89,9.72823664]
[1725854978132,45.0,128.95,128.91,9.72823664]
[1725854989844,45.0,128.95,128.87,20.0]
[1725854990154,45.0,128.95,128.89,9.72823664]
[1725854991434,45.0,128.95,128.86,20.0]
[1725854991634,20.0,128.94,128.88,9.72823664]
[1725854991839,45.0,128.93,128.88,9.72823664]
[1725854993848,45.0,128.93,128.9,9.72823664]
[1725854994253,20.0,128.94,128.9,9.72823664]
[1725854994755,20.0,128.95,128.9,9.72823664]
[1725854995631,45.0,128.94,128.9,9.72823664]
[1725854996256,45.0,128.94,128.92,9.72823664]
[1725854996554,16.6278,128.96,128.92,9.72823664]
[1725854996755,16.6278,128.96,128.94,9.72823664]
[1725854996950,34.28980467,129.0,128.94,9.72823664]
[1725854998358,45.0,128.99,128.94,9.72823664]
[1725854999168,34.28980467,129.0,128.96,9.72823664]
[1725854999350,20.0,128.99,128.96,9.72823664]
[1725855000549,45.0,128.98,128.96,9.72823664]
[1725855001330,45.0,128.98,128.92,1.55477765]
[1725855001532,45.0,128.98,128.89,6.1551]
[1725855001533,45.0,128.98,128.93,9.72823664]
[1725855002952,45.0,128.98,128.92,9.72823664]
[1725855003160,45.0,128.98,128.92,11.28300624]
[1725855003360,15.3399,128.97,128.9,9.72823664]
[1725855003655,71.0887,128.96,128.87,1.5547696]
[1725855003863,71.0887,128.96,128.88,11.28300624]
[1725855004157,71.0887,128.96,128.88,9.72823664]
[1725855005030,71.0887,128.96,128.88,11.28300624]
[1725855005253,71.0887,128.96,128.88,9.72823664]
[1725855005451,77.2922,128.96,128.88,9.72823664]
[1725855005654,71.0887,128.96,128.88,11.28300624]
[1725855005960,71.0887,128.96,128.88,9.72823664]
[1725855006350,71.0887,128.96,128.88,11.28300624]
[1725855006684,71.0887,128.96,128.88,9.72823664]
[1725855006859,77.2921,128.96,128.87,1.5547696]
[1725855007159,77.2921,128.96,128.88,11.28300624]
[1725855007456,77.2921,128.96,128.88,9.72823664]
[1725855007836,77.2921,128.96,128.88,11.28300624]
[1725855008046,71.0887,128.96,128.88,11.28300624]
[1725855008356,71.0887,128.96,128.88,9.72823664]
[1725855008859,71.0887,128.96,128.88,11.28357933]
[1725855009062,71.0887,128.96,128.88,9.72823664]
[1725855009461,71.0887,128.96,128.88,11.28357933]
[1725855009643,71.0887,128.96,128.88,9.72823664]
[1725855010141,71.0887,128.96,128.88,11.28357933]
[1725855010344,71.0887,128.96,128.88,9.72823664]
[1725855010735,71.0887,128.96,128.88,11.28357933]
[1725855010938,71.0887,128.96,128.88,9.72823664]
[1725855011362,71.0887,128.96,128.88,11.28357933]
[1725855011556,26.0887,128.96,128.92,9.72823664]
[1725855012059,15.3399,128.97,128.94,9.72823664]
[1725855015342,45.0,128.96,128.94,9.72823664]
[1725855015760,24.81201936,128.99,128.94,9.72823664]
[1725855016076,5.368722,129.08,128.98,9.72823664]
[1725855016077,15.2418,129.04,128.98,9.72823664]
[1725855016238,15.2418,129.04,129.0,9.72823664]
[1725855016861,15.2418,129.04,129.02,9.72823664]
[1725855017071,40.56028933,129.08,129.02,9.72823664]
[1725855017248,40.56028933,129.08,129.04,9.72823664]
[1725855017756,40.56028933,129.08,129.02,9.72823664]
[1725855018142,20.0,129.07,129.01,24.27015903]
[1725855019479,45.0,129.06,129.01,24.27015903]
[1725855022172,45.0,129.06,128.96,6.592]
[1725855022377,45.0,129.06,128.99,24.27015903]
[1725855030074,15.3577,129.04,128.97,24.27015903]
[1725855030379,45.0,129.03,128.97,24.27015903]
[1725855030580,15.3577,129.04,128.99,24.27015903]
[1725855030758,15.3577,129.04,129.01,24.27015903]
[1725855030966,20.0,129.07,129.01,24.27015903]
[1725855031568,6.4671,129.08,129.01,24.27015903]
[1725855031771,23.3415717,129.09,129.05,24.27015903]
[1725855031986,6.3875,129.13,129.07,24.27015903]
[1725855033074,6.3875,129.13,129.05,24.27015903]
[1725855033575,6.3875,129.13,129.01,40.60225903]
[1725855033576,20.0,129.12,129.01,24.27015903]
[1725855033786,20.0,129.12,129.02,20.0]
[1725855033787,65.0,129.12,129.02,20.0]
[1725855033958,15.9721,129.11,129.02,20.0]
[1725855034158,45.0,129.1,129.02,20.0]
[1725855034359,45.0,129.1,129.03,24.27015903]
[1725855035178,51.1968,129.1,129.01,24.27015903]
[1725855035381,26.6063,129.09,128.99,24.27015903]
[1725855035579,45.0,129.08,129.0,20.0]
[1725855035967,45.0,129.08,128.99,24.27015903]
[1725855036379,45.0,129.08,129.01,24.27015903]
[1725855038069,35.3112,129.07,128.99,24.27015903]
[1725855038389,45.0,129.06,128.97,24.27015903]
[1725855038590,20.0,129.05,128.97,24.27015903]
[1725855038779,45.0,129.04,128.97,24.27015903]
[1725855043608,20.0,129.05,128.99,24.27015903]
[1725855043903,20.0,129.06,128.99,24.27015903]
[1725855045013,20.0,129.06,128.94,40.46945903]
[1725855045014,15.3112,129.07,129.01,24.27015903]
[1725855045609,15.3112,129.07,129.03,24.27015903]
[1725855048794,28.06938043,129.09,129.03,24.27015903]
[1725855049106,45.0,129.08,129.05,24.27015903]
[1725855049314,45.0,129.08,129.03,24.27015903]
[1725855050015,45.0,129.09,129.05,24.27015903]
[1725855050625,45.0,129.09,129.03,24.27015903]
[1725855051318,45.0,129.09,129.01,24.27015903]
[1725855051319,51.1972,129.09,129.01,24.27015903]
[1725855051610,6.4453,129.07,128.99,24.27015903]
[1725855051829,45.0,129.06,129.01,24.27015903]
[1725855052133,45.0,129.06,128.99,24.27015903]
[1725855052726,15.8616,129.05,128.99,24.27015903]
[1725855052907,45.0,129.04,128.99,24.27015903]
[1725855058435,45.0,129.04,128.97,24.27015903]
[1725855059516,45.0,129.04,128.99,24.27015903]
[1725855064238,45.0,129.04,128.95,24.27015903]
[1725855064436,6.3789,129.03,128.95,24.27015903]
[1725855064740,87.8398,129.02,128.93,24.27015903]
[1725855065517,6.201,129.01,128.91,24.27015903]
[1725855065740,87.8397,129.02,128.91,24.27015903]
[1725855066118,87.8397,129.02,128.92,20.0]
[1725855067537,81.6391,129.02,128.93,25.82117166]
[1725855068044,81.6391,129.02,128.93,24.27015903]
[1725855068835,6.201,129.01,128.91,24.27015903]
[1725855069142,15.7107,128.98,128.91,24.27015903]
[1725855069522,45.0,128.97,128.91,24.27015903]
[1725855070651,45.0,128.97,128.89,24.27015903]
[1725855070822,45.0,128.97,128.89,20.0]
[1725855071027,45.0,128.97,128.88,24.27015903]
[1725855072452,45.0,128.97,128.9,24.27015903]
[1725855074140,15.7107,128.98,128.92,24.27015903]
[1725855075417,45.0,128.97,128.92,24.27015903]
[1725855080544,45.0,128.97,128.9,24.27015903]
[1725855084426,45.0,128.97,128.92,24.27015903]
[1725855087526,21.1811,128.96,128.85,16.5037]
[1725855087741,45.0,128.95,128.87,24.27015903]
[1725855088860,45.0,128.95,128.83,13.97613798]
[1725855089031,42.4244,128.94,128.84,24.27015903]
[1725855089269,45.0,128.93,128.84,24.27015903]
[1725855092076,42.4244,128.94,128.88,24.27015903]
[1725855092266,22.4244,128.94,128.88,24.27015903]
[1725855093661,45.0,128.93,128.88,24.27015903]
[1725855094283,45.0,128.93,128.86,24.27015903]
[1725855095080,15.2366,128.92,128.86,24.27015903]
[1725855095383,45.0,128.91,128.86,24.27015903]
[1725855096357,45.0,128.91,128.84,24.27015903]
[1725855097664,45.0,128.91,128.86,24.27015903]
[1725855098885,45.0,128.91,128.84,24.27015903]
[1725855100066,45.0,128.91,128.86,24.27015903]
[1725855108676,15.2366,128.92,128.86,24.27015903]
[1725855108880,15.2366,128.92,128.88,24.27015903]
[1725855109272,15.2366,128.92,128.9,24.27015903]
[1725855109583,6.1772,128.94,128.9,24.27015903]
[1725855110688,37.36522336,128.95,128.92,24.27015903]
[1725855111390,37.36522336,128.95,128.9,24.27015903]
[1725855112103,45.0,128.94,128.9,24.27015903]
[1725855113097,37.36522336,128.95,128.92,24.27015903]
[1725855113308,15.2611,128.95,128.92,24.27015903]
[1725855119404,6.1425,128.97,128.94,24.27015903]
[1725855121505,6.1425,128.97,128.92,24.27015903]
[1725855121711,45.0,128.96,128.92,24.27015903]
[1725855138128,45.0,128.96,128.94,9.71996676]
[1725855139027,6.1425,128.97,128.94,9.71996676]
[1725855139231,44.86935773,129.01,128.96,9.71996676]
[1725855139521,44.86935773,129.01,128.98,9.71996676]
[1725855139897,44.86935773,129.01,129.0,9.71996676]
[1725855140097,23.15255773,129.01,129.0,9.71996676]
[1725855142312,23.15255773,129.01,129.0,24.27355996]
[1725855145926,16.4804,129.04,129.0,24.27355996]
[1725855146232,16.4804,129.04,129.02,24.27355996]
[1725855147321,16.4804,129.04,129.0,24.27355996]
[1725855147823,45.0,129.03,129.0,24.27355996]
[1725855154732,16.4804,129.04,129.01,1.5500627]
[1725855155334,16.4804,129.04,129.0,24.27355996]
[1725855155635,15.5528,129.07,129.02,24.27355996]
[1725855155816,45.0,129.06,129.02,24.27355996]
[1725855157313,51.199,129.06,128.96,6.4141]
[1725855157514,45.0,129.06,128.97,24.27355996]
[1725855157736,20.0,129.05,128.97,24.27355996]
[1725855158049,21.5395,129.03,128.97,24.27355996]
[1725855158232,45.0,129.02,128.97,24.27355996]
[1725855164148,45.0,129.02,128.99,9.71346647]
[1725855180649,21.5395,129.03,128.99,9.71346647]
[1725855180858,15.0983,129.03,128.99,9.71346647]
[1725855181358,45.0,129.02,128.97,11.26746297]
[1725855182759,6.3251,129.01,128.97,1.5539965]
[1725855182965,45.0,129.0,128.97,1.5539965]
[1725855183962,45.0,129.0,128.95,9.71346647]
[1725855186975,45.0,129.0,128.97,9.71346647]
[1725855190244,45.0,129.0,128.95,9.71346647]
[1725855196680,45.0,129.0,128.92,20.55322548]
[1725855196849,15.8286,128.99,128.94,9.71346647]
[1725855197053,45.0,128.98,128.94,9.71346647]
[1725855198877,45.0,128.98,128.95,20.0]
[1725855200676,45.0,128.98,128.94,9.71346647]
[1725855201878,45.0,128.98,128.9,22.0772]
[1725855201879,45.0,128.98,128.96,9.71346647]
[1725855202077,15.8286,128.99,128.96,9.71346647]
[1725855207771,6.3251,129.01,128.96,9.71346647]
[1725855208096,45.0,129.0,128.96,9.71346647]
[1725855208295,45.0,129.0,128.98,9.71346647]
[1725855208586,15.0228,129.02,128.98,9.71346647]
[1725855208793,15.0228,129.02,129.0,9.71346647]
[1725855209762,15.0228,129.02,128.98,9.71346647]
[1725855210390,45.0,129.01,128.98,9.71346647]
[1725855212885,15.0228,129.02,128.98,9.71346647]
[1725855213781,6.0164,129.04,129.0,9.71346647]
[1725855214670,45.0,129.03,129.0,9.71346647]
[1725855221381,16.2208,129.05,129.02,9.71346647]
[1725855221581,37.32038601,129.07,129.02,9.71346647]
[1725855222993,45.0,129.06,129.02,9.71346647]
[1725855229381,45.0,129.06,128.99,16.405313]
[1725855229701,45.0,129.06,129.03,9.71346647]
[1725855231300,16.4789,129.08,129.05,9.71346647]
[1725855235905,45.0,129.07,129.05,9.71346647]
[1725855237687,45.0,129.07,129.0,35.3516]
[1725855237688,45.0,129.07,129.03,9.71346647]
[1725855238894,45.0,129.07,129.0,35.3516]
[1725855239099,45.0,129.07,129.02,9.71346647]
[1725855244016,45.0,129.07,129.04,9.71346647]
[1725855245322,34.52152526,129.11,129.06,9.71346647]
[1725855245491,34.52152526,129.11,129.08,9.71346647]
[1725855246110,6.3444,129.11,129.08,9.71346647]
[1725855247610,45.0,129.1,129.08,9.71346647]
[1725855253439,16.1395,129.12,129.08,9.71346647]
[1725855253827,45.0,129.11,129.08,9.71346647]
[1725855260429,45.0,129.11,129.05,16.5167]
[1725855260624,45.0,129.11,129.07,9.71346647]
[1725855263338,45.0,129.11,129.05,16.5167]
[1725855263541,45.0,129.11,129.06,9.71346647]
[1725855263733,45.0,129.11,129.04,9.71346647]
[1725855263942,45.0,129.11,129.01,16.5668]
[1725855264128,26.4818,129.1,129.01,16.5668]
[1725855264339,45.0,129.09,129.02,9.71346647]
[1725855270438,45.0,129.09,129.01,16.5668]
[1725855270651,45.0,129.09,129.02,9.71346647]
[1725855272747,15.641,129.08,129.02,9.71346647]
[1725855272951,65.0,129.07,129.0,11.07177915]
[1725855273177,65.0,129.07,128.96,13.15600017]
[1725855273450,6.188,129.06,129.02,9.71346647]
[1725855273653,45.0,129.05,129.02,9.71346647]
[1725855275262,15.641,129.08,129.04,9.71346647]
[1725855276445,45.0,129.07,129.04,9.71346647]
[1725855277648,15.641,129.08,129.06,9.71346647]
[1725855278065,15.3514,129.11,129.06,9.71346647]
[1725855278645,15.3514,129.11,129.08,9.71346647]
[1725855279459,45.0,129.1,129.08,9.71346647]
[1725855289676,15.3514,129.11,129.08,9.71346647]
[1725855290583,6.302,129.12,129.08,9.71346647]
[1725855290753,65.0,129.11,129.08,9.71346647]
[1725855296862,45.0,129.11,129.08,9.71346647]
[1725855299182,16.3255,129.14,129.08,9.71346647]
[1725855299361,30.55393476,129.16,129.1,9.71346647]
[1725855300658,45.0,129.15,129.06,22.2534]
[1725855300852,20.0,129.14,129.09,9.71346647]
[1725855301056,45.0,129.13,129.09,9.71346647]
[1725855301784,45.0,129.13,129.06,22.2534]
[1725855301953,45.0,129.13,129.07,29.71346647]
[1725855303666,45.0,129.13,129.07,31.26658376]
[1725855305984,45.0,129.13,129.07,1.55311729]
[1725855306190,20.0,129.12,129.05,9.71346647]
[1725855306485,45.0,129.11,129.05,11.26673234]
[1725855306860,45.0,129.11,129.05,9.71346647]
[1725855307060,45.0,129.11,129.07,9.71346647]
[1725855311884,45.57322626,129.16,129.09,9.71346647]
[1725855312195,65.0,129.15,129.09,9.71346647]
[1725855314088,20.0,129.15,129.09,25.17056647]
[1725855314268,20.0,129.15,129.09,15.4571]
[1725855314472,20.0,129.15,129.11,9.71346647]
[1725855315380,38.93752626,129.16,129.11,9.71346647]
[1725855315381,45.0,129.14,129.11,9.71346647]
[1725855315575,23.47492626,129.16,129.13,9.71346647]
[1725855315783,15.0895,129.19,129.13,9.71346647]
[1725855316097,15.0895,129.19,129.11,6.0477]
[1725855316389,15.0895,129.19,129.12,9.71346647]
[1725855317493,15.0895,129.19,129.09,15.4571]
[1725855317494,45.0,129.18,129.1,9.71346647]
[1725855317711,45.0,129.18,129.07,8.01676757]
[1725855317712,26.5186,129.17,129.07,6.4637]
[1725855317993,45.0,129.16,129.08,9.71346647]
[1725855318210,20.0,129.15,129.08,9.71346647]
[1725855318493,45.0,129.14,129.08,9.71346647]
[1725855319371,45.0,129.14,129.07,6.4637]
[1725855319684,45.0,129.14,129.08,9.71346647]
[1725855328892,60.8295,129.14,129.08,9.71346647]
[1725855338417,60.8295,129.14,129.08,11.26649444]
[1725855338711,60.8295,129.14,129.08,9.71346647]
[1725855338916,60.8295,129.14,129.08,11.26649444]
[1725855339100,60.8295,129.14,129.08,9.71346647]
[1725855339299,60.8295,129.14,129.08,11.26649444]
[1725855339500,60.8295,129.14,129.08,9.71346647]
[1725855339702,60.8295,129.14,129.08,11.26649444]
[1725855339886,60.8295,129.14,129.08,9.71346647]
[1725855340090,60.8295,129.14,129.08,11.26649444]
[1725855340307,60.8295,129.14,129.08,9.71346647]
[1725855340513,60.8295,129.14,129.08,11.26649444]
[1725855340733,60.8295,129.14,129.07,9.71346647]
[1725855340921,6.4499,129.13,129.08,1.55302797]
[1725855341215,45.0,129.12,129.08,1.55302797]
[1725855341989,45.0,129.12,129.08,1.55306592]
[1725855343513,16.1947,129.11,129.08,1.55306592]
[1725855343717,45.0,129.1,129.04,1.55306592]
[1725855343918,45.0,129.1,129.05,1.55306592]
[1725855344215,45.0,129.1,128.99,16.4551]
[1725855344216,15.6315,129.08,129.06,1.55306592]
[1725855344419,45.0,129.07,129.0,11.26653239]
[1725855344589,45.0,129.07,129.01,1.55306592]
[1725855344796,45.0,129.07,129.02,1.55306592]
[1725855345009,45.0,129.07,129.0,9.71346647]
[1725855345010,45.0,129.07,129.03,1.55306592]
[1725855345196,45.0,129.07,129.04,1.55306592]
[1725855345792,45.0,129.07,129.02,9.71346647]
[1725855345991,45.0,129.07,129.03,1.55354443]
[1725855346598,45.0,129.07,129.02,9.71346647]
[1725855347012,45.0,129.07,129.02,11.2670109]
[1725855347214,45.0,129.07,129.02,9.71346647]
[1725855347717,45.0,129.07,129.02,1.55354443]
[1725855348295,15.6315,129.08,129.03,9.71346647]
[1725855349399,45.0,129.07,129.03,9.71346647]
[1725855358326,6.1963,129.11,129.05,9.71346647]
[1725855358327,15.784,129.11,129.05,9.71346647]
[1725855358517,20.0,129.1,129.05,9.71346647]
[1725855360035,45.0,129.09,129.05,9.71346647]
[1725855362118,45.0,129.09,129.02,9.71346647]
[1725855362310,45.0,129.09,128.99,26.16856647]
[1725855362311,22.1296,129.07,128.99,26.16856647]
[1725855362509,65.0,129.06,128.99,9.71346647]
[1725855366037,65.0,129.06,129.01,9.71346647]
[1725855367634,65.0,129.06,128.97,6.5489]
[1725855367814,65.0,129.06,128.99,9.71346647]
[1725855368907,65.0,129.06,128.96,26.61068261]
[1725855369108,65.0,129.06,128.92,27.16717915]
[1725855369109,16.2295,129.02,128.92,27.16717915]
[1725855369324,6.6158,129.01,128.91,6.22799831]
[1725855369516,20.0,129.0,128.92,9.71346647]
[1725855369823,45.0,128.99,128.92,9.71346647]
[1725855370019,45.0,128.99,128.89,16.0954]
[1725855370322,16.2295,128.97,128.89,16.0954]
[1725855370525,45.0,128.96,128.9,9.71346647]
[1725855371111,45.0,128.96,128.89,27.16717915]
[1725855371308,45.0,128.96,128.91,9.71346647]
[1725855371624,45.0,128.96,128.91,20.78524562]
[1725855371937,45.0,128.96,128.93,9.71346647]
[1725855373234,16.2295,128.97,128.93,9.71346647]
[1725855375633,45.0,128.96,128.93,9.71346647]
[1725855376636,45.0,128.96,128.89,16.0954]
[1725855376823,45.0,128.96,128.89,25.80886647]
[1725855377030,51.2144,128.96,128.86,22.83970017]
[1725855377238,20.0,128.95,128.87,9.71346647]
[1725855377434,45.0,128.94,128.87,9.71346647]
[1725855380458,45.0,128.94,128.87,20.78524562]
[1725855387944,15.741,128.93,128.87,11.07177915]
[1725855388130,45.0,128.92,128.85,9.71346647]
[1725855388331,6.0083,128.91,128.85,9.71346647]
[1725855388552,45.0,128.9,128.85,9.71346647]
[1725855389560,45.0,128.9,128.83,21.63192232]
[1725855390145,45.0,128.9,128.85,9.71346647]
[1725855390864,15.741,128.93,128.89,9.71346647]
[1725855391364,15.741,128.93,128.87,9.71346647]
[1725855392453,45.0,128.92,128.87,9.71346647]
[1725855394966,15.741,128.93,128.89,9.71346647]
[1725855400147,15.741,128.93,128.87,9.71346647]
[1725855400448,45.0,128.92,128.88,20.0]
[1725855401353,45.0,128.92,128.89,9.71346647]
[1725855402878,15.741,128.93,128.89,9.71346647]
[1725855406276,15.741,128.93,128.91,9.71346647]
[1725855406482,15.741,128.93,128.89,9.71346647]
[1725855412192,15.741,128.93,128.85,15.5173]
[1725855412380,45.0,128.92,128.85,9.71346647]
[1725855413669,45.0,128.92,128.86,20.0]
[1725855415073,45.0,128.92,128.87,1.55522421]
[1725855416573,45.0,128.92,128.87,1.55522381]
[1725855417182,45.0,128.92,128.88,1.55522381]
[1725855417492,45.0,128.92,128.87,1.55522381]
[1725855417668,45.0,128.92,128.88,1.55522381]
[1725855417868,45.0,128.92,128.87,1.55522381]
[1725855418099,45.0,128.92,128.88,1.55522381]
[1725855418294,45.0,128.92,128.85,29.71346647]
[1725855418295,45.0,128.92,128.86,1.55522381]
[1725855418597,6.231,128.91,128.87,1.55522381]
[1725855418794,6.231,128.91,128.86,1.55522381]
[1725855419088,45.0,128.9,128.86,1.55522381]
[1725855419704,16.5208,128.89,128.86,1.55522381]
[1725855420008,45.0,128.88,128.85,1.55522381]
[1725855420305,45.0,128.88,128.84,1.55522381]
[1725855420508,45.0,128.88,128.85,1.55522381]